bitfinex/quotes_ETHUSD_20220227
["timestamp","ask_amount","ask_price","bid_price","bid_amount"]
[1645955187703,0.56049374,2759.4,2758.2,4.8]
[1645955187897,0.56049374,2759.4,2758.3,0.94849275]
[1645955188135,0.56049374,2759.4,2758.4,3.5]
[1645955188334,0.56049374,2759.4,2758.4,4.5]
[1645955188534,0.56049374,2759.4,2758.4,4.8]
[1645955188734,0.56049374,2759.4,2758.4,1.0]
[1645955188937,0.00595511,2759.0,2758.4,4.8]
[1645955189140,0.56049374,2758.9,2758.3,0.9643]
[1645955189342,0.56049374,2758.9,2758.3,0.6643]
[1645955189541,0.56049374,2758.9,2758.1,0.3643]
[1645955189741,0.56049374,2758.9,2758.8,1.36091862]
[1645955189941,0.1449,2759.5,2758.8,1.36091862]
[1645955190249,0.02381625,2759.3,2758.4,3.5]
[1645955190441,0.56102483,2759.2,2758.4,1.3]
[1645955190842,0.56102483,2759.2,2758.3,0.6]
[1645955191041,0.56102483,2759.2,2758.4,0.94917232]
[1645955191243,0.00595517,2758.9,2758.2,4.9449]
[1645955191443,0.00595517,2758.9,2758.5,1.14962007]
[1645955192094,0.1449,2759.5,2758.5,1.14962007]
[1645955192294,0.56154201,2759.4,2758.5,1.14962007]
[1645955192495,0.00595524,2758.8,2758.5,1.14962007]
[1645955193398,1.12403535,2759.5,2758.5,1.14962007]
[1645955193598,0.00595516,2758.8,2758.5,1.14962007]
[1645955194599,1.31640932,2759.5,2758.5,1.14962007]
[1645955194800,0.00595516,2758.8,2758.5,1.14962007]
[1645955195844,5.33840932,2759.5,2758.5,1.14962007]
[1645955196044,0.00595516,2758.8,2758.5,1.14962007]
[1645955196844,0.00595516,2758.8,2758.4,0.3]
[1645955197048,0.56258838,2758.7,2758.5,0.95125343]
[1645955197248,0.00595516,2758.8,2758.5,0.95125343]
[1645955197448,0.56290544,2758.7,2758.6,0.95125343]
[1645955197849,0.56290544,2758.7,2758.4,0.95125343]
[1645955198052,0.56290544,2758.7,2758.5,0.95125343]
[1645955198251,0.56290544,2758.7,2758.6,0.95125343]
[1645955198650,0.56290544,2758.7,2758.6,1.05721067]
[1645955198850,0.56290544,2758.7,2758.6,2.0084641]
[1645955199994,0.56290544,2758.7,2758.6,0.95125343]
[1645955200393,0.56290544,2758.7,2758.4,0.95125343]
[1645955200794,0.56290544,2758.6,2758.5,0.95125343]
[1645955201293,0.56290544,2758.7,2758.3,1.25125343]
[1645955201492,0.56290544,2758.6,2758.5,0.95125343]
[1645955201893,0.56290544,2758.7,2758.4,0.95125343]
[1645955202093,0.67913535,2759.1,2758.4,0.95125343]
[1645955202094,0.56290544,2758.6,2758.4,0.95125343]
[1645955202295,0.56290544,2758.5,2758.4,0.95125343]
[1645955202693,0.56290544,2758.7,2758.4,0.95125343]
[1645955202893,0.56290544,2758.6,2758.4,0.95125343]
[1645955203141,0.67913535,2759.0,2758.4,0.95125343]
[1645955203142,0.56290544,2758.5,2758.4,0.95125343]
[1645955203338,0.00595486,2758.8,2758.4,0.95125343]
[1645955203539,0.56290544,2758.7,2758.4,0.95125343]
[1645955204341,1.19818755,2759.1,2758.4,0.95125343]
[1645955204342,0.56290544,2758.6,2758.4,0.95125343]
[1645955204541,0.56290544,2758.5,2758.4,0.95125343]
[1645955204941,0.56290544,2758.7,2758.4,0.95125343]
[1645955205143,0.56290544,2758.6,2758.4,0.95125343]
[1645955205340,0.56290544,2758.7,2758.4,0.95125343]
[1645955205541,0.56290544,2758.6,2758.4,0.95125343]
[1645955205744,0.56290544,2758.5,2758.2,0.1449]
[1645955205940,0.56290544,2758.4,2758.3,0.95345131]
[1645955206142,0.5640355,2758.7,2758.3,0.95345131]
[1645955206901,0.5640355,2758.6,2758.3,0.95345131]
[1645955207100,0.5640355,2758.7,2758.3,0.95345131]
[1645955207300,0.5640355,2758.6,2758.3,0.95345131]
[1645955207500,0.5640355,2758.5,2758.3,0.95345131]
[1645955207700,0.5640355,2758.4,2758.3,0.95345131]
[1645955208103,0.67913535,2759.0,2758.3,0.95345131]
[1645955208104,0.00595486,2758.8,2758.3,0.95345131]
[1645955208406,0.5640355,2758.7,2758.3,0.95345131]
[1645955209204,0.5640355,2758.6,2758.3,0.95345131]
[1645955209405,0.5640355,2758.5,2758.3,0.95345131]
[1645955209606,0.5640355,2758.4,2758.3,0.95345131]
[1645955210105,0.5640355,2758.7,2758.3,0.95345131]
[1645955210305,0.5640355,2758.6,2758.3,0.95345131]
[1645955210504,0.5640355,2758.5,2758.3,0.95345131]
[1645955210749,0.5640355,2758.4,2758.3,0.95345131]
[1645955211145,0.5640355,2758.7,2758.3,0.95345131]
[1645955211647,0.5640355,2758.6,2758.3,0.95345131]
[1645955211848,0.5640355,2758.5,2758.4,0.95345131]
[1645955212051,0.5640355,2758.5,2758.4,0.95425516]
[1645955212250,0.5640355,2758.5,2758.1,0.95428496]
[1645955212450,0.56420307,2758.4,2758.2,0.95426551]
[1645955212651,0.56420307,2758.3,2757.9,1.25]
[1645955212851,5.08818999,2758.8,2758.3,0.95441734]
[1645955213050,2.43518999,2758.8,2758.3,0.95441734]
[1645955213749,2.42923535,2758.8,2758.3,0.95441734]
[1645955213953,0.56429128,2758.7,2758.4,0.95436526]
[1645955214151,0.70588223,2758.3,2757.9,1.41420852]
[1645955214393,0.56429128,2758.2,2758.0,0.95439295]
[1645955217694,0.56429128,2758.2,2758.1,0.95439295]
[1645955219537,0.56429128,2758.2,2757.7,1.25439295]
[1645955219737,0.56429128,2758.2,2757.8,0.95439295]
[1645955219937,0.56429128,2758.2,2757.9,0.95439295]
[1645955220137,0.56429128,2758.2,2758.0,0.95439295]
[1645955220341,0.56429128,2758.2,2758.1,0.95439295]
[1645955221346,0.56429128,2758.2,2757.7,0.95439295]
[1645955221539,0.56429128,2758.2,2757.8,0.95439295]
[1645955221739,0.56429128,2758.2,2757.7,1.25439295]
[1645955222000,0.56429128,2758.2,2757.9,0.95439295]
[1645955222201,0.56429128,2758.2,2757.8,0.95439295]
[1645955222398,0.56429128,2758.2,2757.9,0.95439295]
[1645955222599,0.56429128,2758.2,2758.0,0.95439295]
[1645955222799,0.56429128,2758.2,2758.1,0.95439295]
[1645955223197,0.5633418,2758.2,2757.8,1.15284623]
[1645955225939,0.5633418,2758.2,2757.6,0.67389691]
[1645955227145,0.5633418,2758.2,2757.5,2.74929293]
[1645955227348,0.5633418,2758.2,2757.5,3.44929293]
[1645955228350,0.5633418,2758.2,2757.5,3.30439293]
[1645955229392,0.5633418,2758.2,2757.5,3.00439293]
[1645955230185,0.5633418,2758.2,2757.5,2.00439293]
[1645955230385,0.5633418,2758.2,2757.5,3.00439293]
[1645955230586,0.5633418,2758.2,2757.5,2.00439293]
[1645955230886,0.5633418,2758.2,2757.5,3.00439293]
[1645955231085,0.5633418,2758.2,2757.5,2.00439293]
[1645955231486,0.90563708,2758.9,2757.7,0.3643]
[1645955231693,7.86548264,2759.7,2758.0,11.1324447]
[1645955231694,0.02224754,2759.3,2758.0,11.1324447]
[1645955231889,2.45146549,2759.3,2758.3,0.3643]
[1645955232092,0.0053228,2758.8,2758.5,11.12]
[1645955232291,0.0053228,2758.8,2758.6,0.1449]
[1645955232491,0.0053228,2758.8,2758.4,1.06055845]
[1645955232690,0.0053228,2758.8,2758.2,1.0]
[1645955232891,0.0053228,2758.8,2758.3,0.3]
[1645955233141,1.1346,2759.2,2758.0,1.20152288]
[1645955233142,4.6346,2759.2,2758.0,0.90152288]
[1645955233342,0.00532383,2758.8,2758.0,1.20152288]
[1645955234248,7.7185,2759.2,2758.8,0.00170006]
[1645955234249,8.0185,2759.2,2758.8,0.00170006]
[1645955234645,4.5185,2759.2,2758.8,0.00170006]
[1645955234844,8.0185,2759.2,2758.8,0.00170006]
[1645955235445,4.5185,2759.2,2758.8,0.00170006]
[1645955235848,6.96996549,2759.2,2758.8,0.00170006]
[1645955236244,10.16996549,2759.2,2758.8,0.00170006]
[1645955236445,6.66996549,2759.2,2758.8,0.00170006]
[1645955236645,7.03426549,2759.2,2758.8,0.00170006]
[1645955236904,0.3643,2759.1,2758.8,0.00170006]
[1645955237499,4.2185,2759.2,2758.8,0.00170006]
[1645955237699,0.3643,2759.1,2758.8,0.00170006]
[1645955238100,0.00595876,2759.1,2758.8,0.00170006]
[1645955238901,0.37025876,2759.1,2758.8,0.00170006]
[1645955239101,0.3643,2759.1,2758.8,0.00170006]
[1645955239406,0.37025879,2759.1,2758.8,0.00170006]
[1645955239601,4.69225879,2759.1,2758.8,0.00170006]
[1645955240002,0.3643,2758.9,2758.8,0.00170006]
[1645955240205,1.1863,2758.9,2758.8,0.00170006]
[1645955240406,0.822,2758.9,2758.8,0.00170006]
[1645955240641,4.8312,2758.9,2758.8,0.00170006]
[1645955240844,4.6863,2758.9,2758.8,0.00170006]
[1645955241642,5.37357441,2758.9,2758.8,0.00170006]
[1645955242248,1.20930378,2758.9,2758.8,0.00170006]
[1645955242450,0.522,2758.9,2758.8,0.00170006]
[1645955246203,0.8863,2758.9,2758.0,0.68119791]
[1645955246403,0.8863,2758.9,2757.9,1.84513778]
[1645955246603,0.8863,2758.9,2757.9,1.85016887]
[1645955246805,0.522,2758.9,2757.9,1.85016887]
[1645955247004,0.522,2758.9,2757.9,1.55016887]
[1645955247402,1.20930378,2758.9,2757.9,0.86897096]
[1645955247601,1.20930378,2758.9,2757.9,0.86393987]
[1645955247803,1.21456423,2758.9,2757.9,0.86897096]
[1645955248442,0.52726045,2758.9,2757.9,0.86897096]
[1645955248645,0.522,2758.9,2757.9,1.54513778]
[1645955249048,0.52726045,2758.9,2757.9,1.09626887]
[1645955249247,4.39156045,2758.9,2757.9,1.09626887]
[1645955249448,5.07886423,2758.9,2757.9,0.41507096]
[1645955249644,1.21456423,2758.9,2757.9,0.41507096]
[1645955249852,1.21456423,2758.9,2757.8,0.98119791]
[1645955249853,1.20930378,2758.9,2757.8,0.98119791]
[1645955250045,0.527962,2758.9,2757.9,0.68716207]
[1645955250245,0.527962,2758.9,2758.0,0.68119791]
[1645955250246,0.005962,2758.9,2758.0,0.68119791]
[1645955251047,7.8411374,2759.1,2758.0,0.68119791]
[1645955251246,7.15383362,2759.1,2758.3,1.35568995]
[1645955251447,0.00596208,2758.9,2758.3,1.35568995]
[1645955251646,0.51983889,2758.8,2758.4,0.99868773]
[1645955252099,0.51983889,2758.8,2758.4,0.54478773]
[1645955252502,0.0059623,2758.9,2758.4,0.54478773]
[1645955253398,2.45263362,2759.1,2758.4,0.54478773]
[1645955253698,0.00596238,2758.9,2758.4,0.54478773]
[1645955254702,7.78806378,2759.2,2758.4,0.54478773]
[1645955254900,0.00596238,2758.9,2758.4,0.54478773]
[1645955255104,0.00596238,2758.9,2758.4,0.13458773]
[1645955255840,7.78806378,2759.2,2758.4,0.13458773]
[1645955256139,0.00596238,2758.9,2758.4,0.13458773]
[1645955257041,7.78806378,2759.2,2758.4,0.13458773]
[1645955257243,0.00596238,2758.9,2758.4,0.13458773]
[1645955257945,7.10076,2759.2,2758.9,0.00177786]
[1645955258144,7.0998,2759.2,2758.9,0.00177786]
[1645955258345,2.45167362,2759.3,2758.9,0.00177786]
[1645955258746,2.45167362,2759.3,2759.0,1.35261433]
[1645955259602,2.45167362,2759.3,2758.9,0.00177786]
[1645955259799,2.45167362,2759.4,2758.9,0.00177786]
[1645955260998,0.00413778,2759.3,2758.9,0.00177786]
[1645955261198,0.00413778,2759.3,2759.2,1.01337035]
[1645955261396,0.00413778,2759.3,2758.9,0.00177786]
[1645955262003,0.00096,2759.6,2758.9,0.00177786]
[1645955262202,3.58667362,2759.7,2758.9,0.00177786]
[1645955262203,0.00413778,2759.2,2758.9,0.00177786]
[1645955263249,1.13596,2759.7,2758.9,0.00177786]
[1645955263550,0.00413778,2759.2,2758.9,0.00177786]
[1645955263752,0.00413778,2759.2,2758.9,1.38201371]
[1645955263949,0.00413778,2759.2,2758.9,0.00177786]
[1645955264149,0.00413778,2759.2,2758.9,0.30177786]
[1645955264349,1.13596,2759.7,2758.9,0.00177786]
[1645955264552,0.00596355,2759.2,2758.9,0.00177786]
[1645955265650,1.13596,2759.7,2758.9,0.00177786]
[1645955265851,0.00596355,2759.2,2758.9,0.00177786]
[1645955266751,0.00096,2759.5,2758.9,0.00177786]
[1645955267002,1.96816378,2759.7,2758.9,0.00177786]
[1645955267204,1.13596,2759.7,2758.9,0.00177786]
[1645955267401,1.08596,2759.7,2758.9,0.00177786]
[1645955267803,1.03596,2759.7,2758.9,0.00177786]
[1645955268107,1.41786787,2759.6,2758.9,0.00177786]
[1645955269502,0.00596642,2759.4,2758.9,0.00177786]
[1645955270402,0.3643,2759.6,2758.9,0.00177786]
[1645955270646,0.00596649,2759.3,2758.9,0.00177786]
[1645955271642,0.00096,2759.5,2758.9,0.00177786]
[1645955271843,0.00596652,2759.2,2758.9,0.00177786]
[1645955272647,0.00596652,2759.2,2758.9,3.50177786]
[1645955272851,0.00096,2759.6,2758.9,4.50177786]
[1645955273050,1.03596,2759.7,2759.1,1.25639915]
[1645955273253,0.00596656,2759.2,2759.1,1.25639915]
[1645955274047,0.00096,2759.6,2759.1,1.25639915]
[1645955274248,1.035,2759.7,2759.1,1.25639915]
[1645955274500,0.00596649,2759.3,2759.1,1.25639915]
[1645955275102,0.00596649,2759.3,2759.2,0.97999937]
[1645955275300,0.53450693,2759.3,2759.2,0.97999937]
[1645955275499,0.00596646,2759.3,2759.2,0.97999937]
[1645955275698,0.54047339,2759.3,2759.2,0.97999937]
[1645955275907,0.54047339,2759.3,2759.1,0.97999937]
[1645955276099,0.00596646,2759.3,2759.2,0.97999937]
[1645955276298,0.00596646,2759.3,2759.2,2.00447231]
[1645955276499,0.53447287,2759.3,2759.2,2.00447231]
[1645955276699,0.00576506,2759.4,2759.2,0.97999937]
[1645955276898,0.53447287,2759.3,2759.0,0.3]
[1645955277399,0.53447287,2759.3,2759.1,0.98027381]
[1645955277799,0.53447287,2759.3,2759.1,1.28027381]
[1645955278001,0.00096,2759.6,2759.3,0.68817527]
[1645955278248,0.00096,2759.6,2759.4,0.98027381]
[1645955278249,0.53459597,2759.6,2759.4,0.98027381]
[1645955278649,0.53459597,2759.6,2759.3,0.53885833]
[1645955279052,0.00096,2759.8,2759.3,0.53885833]
[1645955279350,46.83236378,2760.0,2759.3,0.53885833]
[1645955279950,46.14506,2760.0,2759.3,0.53885833]
[1645955280351,45.78076,2760.0,2759.3,0.53885833]
[1645955280554,4.90281246,2759.9,2759.3,0.53885833]
[1645955280854,5.89080237,2759.9,2759.3,0.53885833]
[1645955281055,4.90281246,2759.9,2759.3,0.53885833]
[1645955281255,5.89074537,2759.9,2759.3,0.53885833]
[1645955281455,0.00567868,2759.7,2759.3,0.53885833]
[1645955282302,0.00567868,2759.7,2759.3,0.03985833]
[1645955282500,4.90281246,2759.9,2759.3,0.03985833]
[1645955282700,0.00567873,2759.6,2759.3,0.03985833]
[1645955283709,0.00096,2759.8,2759.3,0.03985833]
[1645955283904,5.8976917,2759.9,2759.3,0.03985833]
[1645955283905,0.00569986,2759.6,2759.3,0.03985833]
[1645955284805,0.00096,2759.8,2759.3,1.26922389]
[1645955285003,2.45167362,2759.9,2759.3,1.26922389]
[1645955285205,0.00569986,2759.6,2759.3,1.26922389]
[1645955286056,0.00096,2759.8,2759.3,1.26922389]
[1645955286261,0.00570298,2759.6,2759.3,1.26922389]
[1645955287361,0.00096,2759.8,2759.3,1.26922389]
[1645955287560,0.00569847,2759.6,2759.3,1.26922389]
[1645955287960,0.00569847,2759.6,2759.4,3.5]
[1645955288163,38.0499733,2760.0,2759.5,4.5]
[1645955288363,38.0499733,2760.0,2759.6,3.5]
[1645955288561,38.02718284,2760.0,2759.6,3.5]
[1645955288763,38.02718284,2760.0,2759.6,4.8]
[1645955288962,38.02718284,2760.0,2759.6,4.9449]
[1645955289162,38.02718284,2760.0,2759.8,1.15599394]
[1645955289418,38.02718284,2760.0,2759.9,3.5]
[1645955289601,38.02718284,2760.0,2759.8,1.75599394]
[1645955289800,38.02718284,2760.0,2759.9,3.5]
[1645955290002,38.03132131,2760.0,2759.9,3.5]
[1645955290205,37.75558898,2760.0,2759.9,3.5]
[1645955290401,37.75558898,2760.0,2759.9,15.7649]
[1645955291001,37.75145051,2760.0,2759.9,15.7649]
[1645955291201,37.22505051,2760.0,2759.9,4.6449]
[1645955293456,37.22505051,2760.0,2759.9,15.7649]
[1645955293857,37.22505051,2760.0,2759.9,4.6449]
[1645955294357,37.22505051,2760.0,2759.9,20.7649]
[1645955294558,37.22505051,2760.0,2759.9,22.03969657]
[1645955295156,37.22505051,2760.0,2759.9,17.03969657]
[1645955295359,37.22262161,2760.0,2759.9,15.7649]
[1645955296665,37.22262161,2760.0,2759.9,15.62]
[1645955296908,37.22262161,2760.0,2759.9,20.62]
[1645955297107,37.22262161,2760.0,2759.9,21.89479657]
[1645955297306,37.22262161,2760.0,2759.9,5.77479657]
[1645955297606,37.22262161,2760.0,2759.9,15.62]
[1645955298210,35.58989481,2760.0,2759.9,15.62]
[1645955298810,35.58989481,2760.0,2759.9,16.5340207]
[1645955299010,13.60466774,2760.0,2759.9,21.5340207]
[1645955299218,11.1557438,2760.0,2759.9,22.80881727]
[1645955299412,11.1557438,2760.0,2759.9,23.63491518]
[1645955299810,11.1557438,2760.0,2759.9,23.47571727]
[1645955300011,11.1557438,2760.0,2759.9,24.14955982]
[1645955300410,11.1557438,2760.0,2759.9,23.33081727]
[1645955300657,11.1557438,2760.0,2759.9,18.33081727]
[1645955300862,11.1557438,2760.0,2759.9,17.0560207]
[1645955301061,11.1557438,2760.0,2759.9,0.9140207]
[1645955304167,11.1557438,2760.0,2759.9,1.2140207]
[1645955304595,11.1557438,2760.0,2759.9,0.9140207]
[1645955305599,11.1557438,2760.0,2759.3,0.03985833]
[1645955305600,11.5200438,2760.0,2759.3,0.03985833]
[1645955305797,11.5200438,2760.0,2759.4,0.89979583]
[1645955306799,0.00536946,2759.8,2759.4,0.89979583]
[1645955307803,11.1557438,2760.0,2759.4,1.19979583]
[1645955308004,0.00536952,2759.7,2759.5,0.89979583]
[1645955308453,0.00536952,2759.7,2759.5,4.39979583]
[1645955308654,0.00536952,2759.7,2759.6,0.89979583]
[1645955308856,0.00536952,2759.7,2759.6,1.19979583]
[1645955309059,11.1557438,2760.0,2759.6,1.19979583]
[1645955309256,0.00536848,2759.7,2759.5,0.6]
[1645955309456,0.00536848,2759.7,2759.6,0.89983609]
[1645955310260,11.1557438,2760.0,2759.6,0.89983609]
[1645955310261,11.5200438,2760.0,2759.6,0.89983609]
[1645955310459,0.00536644,2759.8,2759.6,0.89983609]
[1645955311262,11.1557438,2760.0,2759.6,0.89983609]
[1645955311661,0.00536642,2759.8,2759.6,0.89983609]
[1645955312515,11.5200438,2760.0,2759.6,0.89983609]
[1645955312712,11.1557438,2760.0,2759.6,0.89983609]
[1645955312911,0.00536642,2759.8,2759.6,0.89983609]
[1645955313712,11.1557438,2760.0,2759.6,0.89983609]
[1645955313914,0.00536697,2759.8,2759.6,0.89983609]
[1645955314516,0.00536697,2759.8,2759.7,0.89983609]
[1645955314917,11.5200438,2760.0,2759.7,0.89983609]
[1645955315116,0.00536694,2759.9,2759.7,0.89983609]
[1645955315758,0.00536694,2759.9,2759.8,0.91963852]
[1645955316158,11.5200438,2760.0,2759.8,0.91963852]
[1645955316359,11.5200438,2760.0,2759.9,0.91963852]
[1645955316360,11.16111068,2760.0,2759.9,0.91963852]
[1645955317162,11.16111068,2760.0,2759.5,0.91963852]
[1645955317365,11.1557438,2760.0,2759.6,0.91963852]
[1645955317569,11.1557438,2760.0,2759.7,0.91963852]
[1645955317764,11.1557438,2760.0,2759.8,0.91963852]
[1645955317966,11.1557438,2760.0,2759.9,0.91963852]
[1645955318166,9.52272738,2760.0,2759.5,4.41963852]
[1645955318367,9.52272738,2760.0,2759.6,0.91963852]
[1645955318568,9.52272738,2760.0,2759.7,0.91963852]
[1645955318768,0.00536684,2759.9,2759.8,3.5]
[1645955318969,0.00536684,2759.9,2759.8,4.41963852]
[1645955319170,0.00536684,2759.9,2759.8,15.83963852]
[1645955319428,0.00536684,2759.9,2759.8,16.83963852]
[1645955319616,0.00536684,2759.9,2759.8,17.51348107]
[1645955319815,9.52272738,2760.0,2759.8,17.51348107]
[1645955320016,9.52809416,2760.0,2759.9,5.48413385]
[1645955320220,9.52809416,2760.0,2759.9,6.48413385]
[1645955321016,9.52272738,2760.0,2759.9,6.48413385]
[1645955321218,9.52272738,2760.0,2759.9,7.1579764]
[1645955322623,9.52272738,2760.0,2759.9,18.2779764]
[1645955322828,9.52272738,2760.0,2759.9,17.60413385]
[1645955323152,9.52272738,2760.0,2759.9,18.2779764]
[1645955324359,9.52272738,2760.0,2759.9,17.60413385]
[1645955324561,9.52272738,2760.0,2759.9,18.28098034]
[1645955324758,9.52272738,2760.0,2759.9,17.60413385]
[1645955325159,9.52272738,2760.0,2759.9,6.48413385]
[1645955325364,9.52272738,2760.0,2759.9,17.60413385]
[1645955326361,9.52272738,2760.0,2759.9,18.50565673]
[1645955326762,9.47272738,2760.0,2759.9,17.60413385]
[1645955327001,9.47272738,2760.0,2759.9,18.50565673]
[1645955327203,7.02379531,2760.0,2759.9,18.50565673]
[1645955328305,7.01893752,2760.0,2759.9,18.50565673]
[1645955329607,7.01893752,2760.0,2759.9,19.75802445]
[1645955330416,7.01893752,2760.0,2759.9,7.57352912]
[1645955330654,7.01893752,2760.0,2759.9,5.41963852]
[1645955332460,7.01893752,2760.0,2759.9,6.3211614]
[1645955332760,7.01893752,2760.0,2759.9,6.67200624]
[1645955332964,7.01893752,2760.0,2759.9,7.57352912]
[1645955333162,7.01893752,2760.0,2759.9,4.07352912]
[1645955333360,7.01893752,2760.0,2759.9,6.3211614]
[1645955335202,7.01893752,2760.0,2759.9,17.79200624]
[1645955335702,7.01893752,2760.0,2759.9,18.69495009]
[1645955337102,6.18085633,2760.0,2759.9,18.69495009]
[1645955337302,6.672e-05,2760.1,2760.0,18.12]
[1645955337503,6.672e-05,2760.1,2760.0,26.81400624]
[1645955337803,0.02146367,2760.5,2760.0,27.11400624]
[1645955338004,0.00096,2761.1,2760.4,0.67688984]
[1645955338273,2.6816,2761.2,2760.5,1.59652836]
[1645955338274,1.0501287,2761.2,2760.5,1.59652836]
[1645955338470,1.0501287,2761.2,2760.6,0.91963852]
[1645955338671,1.0501287,2761.2,2760.7,0.91963852]
[1645955338672,1.0491687,2761.2,2760.7,0.91963852]
[1645955338873,1.0491687,2761.2,2760.7,1.21963852]
[1645955339072,1.0491687,2761.2,2760.8,0.91963852]
[1645955339073,0.6848687,2761.2,2760.8,0.91963852]
[1645955339274,0.00598704,2761.1,2760.9,0.91963852]
[1645955339673,0.00598704,2761.1,2761.0,0.91963852]
[1645955340274,0.36526,2761.6,2761.0,0.91963852]
[1645955340474,0.00598698,2761.2,2761.0,0.91963852]
[1645955340878,0.00598698,2761.2,2761.1,0.91963852]
[1645955341076,1.03990228,2761.2,2761.1,0.91963852]
[1645955341474,1.0339153,2761.2,2761.1,0.91963852]
[1645955341918,0.6696153,2761.2,2761.1,0.91963852]
[1645955342712,0.00096,2761.6,2761.1,0.91963852]
[1645955342913,0.00598691,2761.3,2761.2,0.91963852]
[1645955343113,0.67553818,2761.3,2761.2,0.91963852]
[1645955343914,0.3643,2761.5,2761.2,0.91963852]
[1645955344214,0.67534729,2761.4,2761.3,0.91963852]
[1645955345014,0.66936045,2761.4,2761.3,0.91963852]
[1645955345858,0.3643,2761.3,2761.1,0.3]
[1645955346062,0.3643,2761.3,2761.2,0.84142625]
[1645955346458,1.03939647,2761.3,2761.2,0.84142625]
[1645955346861,1.03939647,2761.3,2760.9,1.14142625]
[1645955347059,0.00598687,2761.3,2761.0,0.84142625]
[1645955347259,0.00598687,2761.3,2761.1,0.84142625]
[1645955347459,0.3643,2761.5,2761.2,0.84142625]
[1645955347660,0.37028691,2761.3,2760.6,0.1448]
[1645955347862,0.37124691,2761.3,2760.7,0.84123352]
[1645955348061,0.3643,2761.1,2760.8,0.1448]
[1645955348262,0.3643,2761.1,2760.9,0.84123352]
[1645955348960,0.00598701,2761.1,2760.9,0.84123352]
[1645955349421,0.66910336,2761.0,2760.9,0.84123352]
[1645955349711,2.44598617,2761.0,2760.0,0.67688984]
[1645955349909,2.44598617,2761.0,2760.1,0.98638849]
[1645955349910,0.3643,2760.8,2760.1,0.98638849]
[1645955350112,0.3643,2760.8,2760.2,0.84148849]
[1645955350312,0.36526,2760.8,2760.2,0.84148849]
[1645955350516,0.36526,2760.8,2760.0,0.1449]
[1645955350517,0.3643,2760.6,2760.3,0.75940249]
[1645955350814,0.522,2760.9,2760.0,0.1449]
[1645955350815,1.67071671,2760.2,2760.0,0.1449]
[1645955351015,1.67071671,2760.2,2759.8,0.1449]
[1645955351815,1.67071671,2760.2,2759.6,0.67688984]
[1645955352014,1.67071671,2760.2,2759.5,0.67688984]
[1645955352415,1.67071671,2760.2,2759.4,0.67688984]
[1645955352618,0.3643,2759.7,2759.4,0.67688984]
[1645955353014,0.3643,2759.7,2759.5,0.67688984]
[1645955353649,0.3643,2760.1,2759.5,0.67688984]
[1645955354158,0.3643,2760.1,2759.3,0.03985833]
[1645955354159,0.3643,2759.9,2759.3,0.03985833]
[1645955354356,0.8863,2759.9,2759.2,0.26334817]
[1645955354557,0.3643,2759.7,2759.0,0.90251978]
[1645955354759,0.3643,2759.7,2758.9,1.04919764]
[1645955354956,1.38838273,2759.7,2759.3,0.00598659]
[1645955355156,0.3643,2759.7,2759.3,0.00598659]
[1645955355555,0.3643,2760.1,2759.3,0.00598659]
[1645955355757,0.3643,2760.1,2759.0,0.90251978]
[1645955355959,1.5846,2760.1,2759.0,0.90251978]
[1645955356157,1.5846,2760.1,2759.3,0.00598644]
[1645955356364,0.3643,2759.8,2759.3,0.00598644]
[1645955357012,0.3643,2759.8,2758.9,0.44667786]
[1645955357211,0.3643,2759.8,2759.3,0.00598651]
[1645955357407,0.3643,2759.8,2758.9,0.4449]
[1645955357608,0.3643,2759.8,2758.9,0.1449]
[1645955358209,0.3643,2760.0,2759.9,0.14402771]
[1645955360510,1.24863372,2759.4,2758.9,1.28228352]
[1645955360748,1.24863372,2759.4,2758.9,0.4449]
[1645955360948,1.24863372,2759.4,2759.2,0.00185581]
[1645955361751,1.24863372,2759.4,2758.9,0.4449]
[1645955361752,0.3643,2760.0,2758.9,0.1449]
[1645955361957,0.00413573,2759.7,2758.8,1.04741978]
[1645955362153,0.00413573,2759.7,2758.9,0.3]
[1645955362358,0.00413573,2759.7,2758.8,0.4449]
[1645955362760,0.00413573,2759.7,2758.8,3.9449]
[1645955362959,0.3643,2760.0,2758.8,5.84741978]
[1645955363159,0.00413566,2759.7,2758.8,5.84741978]
[1645955363359,0.00413566,2759.7,2758.8,1.89401978]
[1645955363561,0.00413566,2759.7,2758.8,1.1364]
[1645955363759,0.00413566,2759.7,2758.8,0.1449]
[1645955364164,5.477,2760.1,2758.8,4.54741978]
[1645955364422,1.07893366,2759.7,2759.1,0.00598655]
[1645955365014,0.00598523,2759.7,2759.1,0.00598655]
[1645955365218,0.00598523,2759.7,2759.1,4.4806044]
[1645955365414,4.5907,2760.1,2759.1,4.4806044]
[1645955365415,4.4458,2760.1,2759.2,0.67461785]
[1645955365616,4.4458,2760.1,2759.3,3.5]
[1645955365617,0.00598546,2759.7,2759.3,3.5]
[1645955365816,0.00598546,2759.7,2759.3,4.8]
[1645955366013,0.00598546,2759.7,2759.3,1.3]
[1645955366214,0.00598546,2759.7,2759.2,0.97461785]
[1645955366414,0.00598546,2759.7,2759.2,0.3]
[1645955366615,1.34815387,2760.0,2759.1,1.11951785]
[1645955366823,1.34815387,2760.0,2759.1,0.82511575]
[1645955367014,0.00559668,2759.7,2759.1,0.0055979]
[1645955368016,1.02289712,2759.5,2759.0,0.67461785]
[1645955368251,1.02289712,2759.5,2759.1,0.00559783]
[1645955368853,0.00559661,2759.7,2759.1,0.00559783]
[1645955369052,3.5,2760.0,2759.0,0.67461785]
[1645955369254,0.00558407,2759.7,2759.1,0.0055853]
[1645955370258,4.4458,2760.1,2759.0,0.67461785]
[1645955370457,1.31966546,2759.6,2759.1,0.00558543]
[1645955370656,0.00558421,2759.7,2759.2,0.77367345]
[1645955371460,4.4458,2760.1,2759.2,0.77367345]
[1645955371657,0.00561082,2759.7,2759.1,0.7792855]
[1645955371926,0.00561082,2759.7,2759.2,0.77367345]
[1645955372722,4.4458,2760.1,2759.2,0.77367345]
[1645955372922,0.00562321,2759.7,2759.3,0.77367345]
[1645955373124,0.00562321,2759.7,2759.4,0.77367345]
[1645955373323,0.00562321,2759.7,2759.5,0.77367345]
[1645955373524,0.00562321,2759.7,2759.6,0.77367345]
[1645955373724,0.00562321,2759.7,2759.2,0.77367345]
[1645955374025,1.2203,2760.1,2759.2,1.43797345]
[1645955374226,3.2513,2760.2,2759.4,12.15891785]
[1645955374227,0.00562331,2759.7,2759.4,12.15891785]
[1645955374425,0.00562331,2759.7,2759.6,11.79461785]
[1645955374628,0.02248923,2760.2,2759.7,17.48439244]
[1645955374824,0.02248923,2760.2,2759.8,1.81136863]
[1645955375024,1.20646,2760.6,2759.9,0.1449]
[1645955375228,1.2055,2760.6,2759.9,0.91857345]
[1645955375429,1.2055,2760.6,2760.0,0.77367345]
[1645955375646,1.2055,2760.6,2760.0,1.07367345]